bitfinex-derivatives/quotes_ETHF0:USTF0_20251103
["timestamp","ask_amount","ask_price","bid_price","bid_amount"]
[1762128362520,1.37442396,3910.9,3910.1,0.2454]
[1762128362521,3.2078,3910.2,3910.1,0.2454]
[1762128362818,3.76147184,3910.2,3910.1,0.2454]
[1762128363527,3.76147184,3910.2,3910.1,0.70579]
[1762128363713,3.2078,3910.2,3910.1,0.2454]
[1762128364018,4.22203336,3910.2,3910.0,0.1506]
[1762128364226,0.55422672,3910.1,3910.0,0.1506]
[1762128364816,3.2078,3910.2,3910.1,0.2454]
[1762128365124,3.7620166,3910.2,3910.1,0.2454]
[1762128367925,3.2078,3910.2,3910.1,0.2454]
[1762128368129,3.2078,3910.2,3910.1,9.2524]
[1762128368721,3.2078,3910.2,3910.1,10.29136239]
[1762128369231,3.2078,3910.6,3910.5,0.1506]
[1762128369426,3.76225598,3910.6,3910.5,0.396]
[1762128370835,0.55445598,3910.6,3910.5,0.396]
[1762128371726,3.2078,3911.0,3910.5,0.396]
[1762128371727,3.10884324,3911.0,3910.5,0.1506]
[1762128371921,7.33415654,3914.5,3910.5,0.1506]
[1762128371922,1.37172173,3911.4,3911.3,0.2454]
[1762128372122,4.57952173,3911.9,3911.0,9.61788]
[1762128372325,3.2078,3911.9,3911.5,0.1506]
[1762128372621,3.2078,3911.6,3911.5,0.1506]
[1762128372822,3.2108059,3911.6,3911.5,0.1506]
[1762128374326,3.2108059,3911.6,3911.1,8.086]
[1762128374529,3.2108059,3911.6,3911.5,0.1506]
[1762128376225,0.0030059,3911.6,3911.5,0.1506]
[1762128376625,3.6710259,3911.6,3911.5,0.1506]
[1762128377232,3.2108059,3911.6,3911.5,0.1506]
[1762128379027,0.0030059,3911.6,3911.5,0.1506]
[1762128379229,0.4632259,3911.6,3911.5,0.1506]
[1762128379428,0.0030059,3911.6,3911.5,0.1506]
[1762128379632,0.4632259,3911.6,3911.5,0.1506]
[1762128379929,0.0030059,3911.6,3911.5,0.1506]
[1762128382240,0.0030059,3911.6,3911.5,0.3986]
[1762128383939,3.2108059,3911.6,3911.5,0.1506]
[1762128384527,3.2108059,3911.6,3911.1,1.03896239]
[1762128384731,3.66807,3911.2,3910.8,1.03896239]
[1762128385031,0.46029,3911.1,3911.0,0.1477]
[1762128385940,3.2078,3911.2,3911.0,0.1477]
[1762128386142,3.66807,3911.2,3911.0,0.1477]
[1762128386841,3.2078,3911.2,3910.6,1.03896239]
[1762128387142,0.46032,3910.8,3910.6,1.03896239]
[1762128387340,0.46034,3910.6,3910.3,1.03896239]
[1762128387640,0.46036,3910.4,3910.3,1.03896239]
[1762128387841,0.46038,3910.3,3910.1,1.03896239]
[1762128388141,0.46034,3910.6,3910.5,0.1477]
[1762128388337,3.2078,3910.7,3910.5,0.1477]
[1762128388532,0.55087822,3910.6,3910.5,0.1477]
[1762128388734,0.55087822,3910.6,3910.1,1.03896239]
[1762128388938,0.55087822,3910.5,3910.1,1.03896239]
[1762128389141,0.55087822,3910.4,3910.1,1.03896239]
[1762128389339,0.55087822,3910.3,3910.1,1.03896239]
[1762128389542,0.55087822,3910.2,3910.1,1.03896239]
[1762128389843,0.46034,3910.6,3910.5,0.1477]
[1762128390043,1.01140735,3910.6,3910.5,0.1477]
[1762128391641,0.46038,3910.2,3910.1,1.03896239]
[1762128391839,0.55106735,3910.2,3910.1,1.03896239]
[1762128392147,3.2078,3911.1,3911.0,0.1477]
[1762128392342,3.75907757,3911.1,3911.0,0.1477]
[1762128392842,3.75907757,3911.1,3911.0,1.41976239]
[1762128393042,3.2078,3911.1,3911.0,1.41976239]
[1762128393233,3.75907242,3911.1,3911.0,1.41976239]
[1762128394254,3.75907242,3911.1,3911.0,1.18666239]
[1762128399651,3.75907242,3911.1,3911.0,1.41976239]
[1762128400248,0.55127242,3911.1,3911.0,1.41976239]
[1762128400959,3.2078,3911.5,3911.4,0.2331]
[1762128401152,3.7566331,3911.5,3911.4,0.2331]
[1762128401550,3.7566331,3911.5,3911.4,1.27206239]
[1762128404156,0.5488331,3911.5,3911.4,1.27206239]
[1762128405061,3.7566331,3911.5,3911.4,1.03896239]
[1762128408756,3.7566331,3911.5,3911.4,1.27076239]
[1762128412367,3.7566331,3911.5,3911.4,1.03896239]
[1762128413258,3.7566331,3911.5,3911.4,1.27076239]
[1762128414561,3.7566331,3911.5,3911.4,1.03896239]
[1762128414969,3.7566331,3911.5,3911.4,1.27076239]
[1762128415462,3.7566331,3911.5,3911.4,0.2318]
[1762128416663,0.5488331,3911.5,3911.4,0.2318]
[1762128416866,0.0030059,3911.6,3911.5,0.82753]
[1762128417565,0.0030059,3911.6,3911.5,9.82753]
[1762128418663,0.0030059,3911.6,3911.5,0.82753]
[1762128419066,0.0030059,3911.6,3911.5,9.82753]
[1762128419461,0.0030059,3911.6,3911.5,10.86649239]
[1762128420164,0.0030059,3911.6,3911.5,1.86649239]
[1762128420364,0.0030059,3911.6,3911.5,10.86549239]
[1762128420567,0.46014,3912.3,3912.2,0.2318]
[1762128420771,1.00943865,3912.3,3912.2,1.27076239]
[1762128420964,0.54929865,3912.3,3912.2,1.27076239]
[1762128421565,0.55219603,3912.3,3912.2,1.27076239]
[1762128421764,1.01233603,3912.3,3912.2,1.27076239]
[1762128422270,1.01219544,3912.3,3912.2,1.27076239]
[1762128422469,0.55205544,3912.3,3912.2,1.27076239]
[1762128424364,0.55205544,3912.3,3912.2,10.26876239]
[1762128424669,0.55205544,3912.3,3912.2,1.27076239]
[1762128424868,0.55205544,3912.3,3912.2,10.26876239]
[1762128426872,0.55205544,3912.3,3912.2,1.03896239]
[1762128431068,0.46015,3912.2,3912.0,0.1355]
[1762128431270,0.54915806,3912.1,3912.0,0.1355]
[1762128436580,0.54915806,3912.1,3912.0,0.3673]
[1762128436773,0.54915806,3912.1,3912.0,0.1355]
[1762128439776,0.54915806,3912.1,3912.0,0.3577]
[1762128442981,0.54915806,3912.1,3912.0,1.39666239]
[1762128448077,0.54915806,3912.1,3912.0,10.38966239]
[1762128448577,0.00289738,3912.3,3912.2,0.2222]
[1762128448786,0.5526031,3912.3,3912.2,1.26116239]
[1762128450085,0.5526031,3912.3,3912.2,10.25416239]
[1762128450989,0.5526031,3912.3,3912.2,1.26116239]
[1762128454288,0.5526031,3912.3,3912.2,1.03896239]
[1762128455190,0.5526031,3912.3,3912.2,1.25936239]
[1762128456082,0.5526031,3912.3,3912.2,1.03896239]
[1762128460394,0.5526031,3912.3,3912.0,0.1355]
[1762128460395,0.46015,3912.2,3912.0,0.1355]
[1762128460594,0.54970572,3912.1,3912.0,0.1355]
[1762128462188,1.37916059,3912.1,3912.0,0.3559]
[1762128462388,0.54970572,3912.1,3912.0,0.3559]
[1762128466691,0.54970572,3912.1,3912.0,0.1355]
[1762128468198,0.54970572,3912.1,3912.0,0.3569]
[1762128468399,0.46303738,3912.3,3912.0,0.3569]
[1762128468400,1.01074421,3912.2,3912.1,0.2214]
[1762128470204,1.83932059,3912.2,3912.0,0.1355]
[1762128470395,0.55058421,3912.1,3912.0,0.1355]
[1762128472002,1.9297448,3912.1,3912.0,0.1355]
[1762128473099,0.55058421,3912.1,3912.0,0.1355]
[1762128473697,1.9297448,3912.1,3912.0,0.1355]
[1762128473893,0.55058421,3912.1,3912.0,0.1355]
[1762128476905,3.75838421,3912.1,3912.0,0.1355]
[1762128477106,5.1375448,3912.1,3912.0,0.1355]
[1762128478000,5.1375448,3912.1,3912.0,1.17446239]
[1762128478714,5.1375448,3912.1,3912.0,0.1355]
[1762128480312,0.46022,3911.6,3911.5,0.1355]
[1762128480503,5.04729256,3911.6,3911.5,0.1355]
[1762128480809,5.59787677,3911.6,3911.5,0.1355]
[1762128481110,5.59797607,3911.6,3911.5,0.1355]
[1762128481314,4.21870351,3911.6,3911.5,0.1355]
[1762128486315,5.59704544,3911.6,3911.5,0.1355]
[1762128489211,4.21870351,3911.6,3911.5,0.1355]
[1762128489514,5.59704544,3911.6,3911.5,0.1355]
[1762128491814,4.21870351,3911.6,3911.5,0.1355]
[1762128493217,3.75848351,3911.6,3911.5,0.1355]
[1762128493814,3.75848351,3911.6,3911.5,0.3569]
[1762128494225,3.75848351,3911.6,3911.5,0.1355]
[1762128495816,3.75848351,3911.6,3909.7,0.20804966]
[1762128495817,0.1093,3910.4,3909.8,3.2078]
[1762128496118,0.46039,3910.2,3909.8,3.2078]
[1762128496317,0.55155807,3910.1,3910.0,0.3451]
[1762128499317,0.46037,3910.4,3910.3,0.2171]
[1762128500122,1.01139825,3910.4,3910.3,0.2171]
[1762128500626,4.32849825,3910.4,3910.3,0.2171]
[1762128500923,4.21919825,3910.4,3910.3,0.2171]
[1762128501321,0.55102825,3910.4,3910.3,0.2171]
[1762128501512,0.55102825,3910.4,3910.3,1.25606239]
[1762128503824,0.66032825,3910.4,3910.3,1.03896239]
[1762128504022,3.86812825,3910.4,3910.3,1.03896239]
[1762128504524,0.109,3910.0,3909.9,1.03896239]
[1762128504721,0.109,3910.0,3909.5,0.13028476]
[1762128504722,0.56945,3909.6,3909.5,0.00218476]
[1762128504922,4.32827825,3909.6,3909.5,0.00218476]
[1762128505722,0.4605,3909.3,3908.9,3.2078]
[1762128505929,0.109,3909.1,3908.9,3.2078]
[1762128506828,0.11110589,3909.1,3909.0,0.13106592]
[1762128507328,0.68322,3909.0,3908.5,0.1281]
[1762128507521,0.46057,3908.7,3908.6,0.2192]
[1762128508032,0.68327,3908.7,3908.6,0.2192]
[1762128508326,0.68327,3908.7,3908.6,0.2223264]
[1762128508524,0.68327,3908.7,3908.6,0.0031264]
[1762128508924,0.46057,3908.7,3908.6,0.2223264]
[1762128509730,0.46057,3908.7,3908.6,1.26128879]
[1762128512228,0.2227,3908.7,3908.6,1.04208879]
[1762128512532,0.46056,3908.8,3908.6,1.26128879]
[1762128513038,0.46056,3908.8,3908.7,0.2192]
[1762128513335,3.20990589,3909.1,3909.0,0.81842]
[1762128514033,0.00210589,3909.1,3909.0,0.81842]
[1762128515439,0.00210589,3909.1,3909.0,1.85738239]
[1762128517039,0.00210589,3909.1,3909.0,10.83738239]
[1762128519132,12.1888,3910.4,3909.9,0.2192]
[1762128519332,3.2078,3910.4,3910.3,0.2192]
[1762128519641,3.75757099,3910.4,3910.0,0.1387]
[1762128519833,0.46039,3910.2,3910.0,0.1387]
[1762128520232,0.46281134,3910.2,3910.0,0.1387]
[1762128520534,0.00242134,3910.2,3910.0,0.1387]
[1762128520734,0.00242134,3910.2,3910.1,0.2192]
[1762128522438,0.55256102,3910.2,3910.1,0.2192]
[1762128524235,0.5529859,3910.2,3910.1,0.2192]
[1762128524834,0.2238,3910.0,3909.9,1.03896239]
[1762128525442,0.77465912,3910.0,3909.9,1.03896239]
[1762128525641,0.4604,3910.1,3910.0,0.1343]
[1762128525834,0.2238,3910.0,3909.9,1.03896239]
[1762128526040,0.77465915,3910.0,3909.9,1.03896239]
[1762128529446,0.55085915,3910.0,3909.9,1.26906239]
[1762128529641,0.77465915,3910.0,3909.9,1.03896239]
[1762128529843,3.98245915,3910.0,3909.9,1.03896239]
[1762128530549,0.55085915,3910.0,3909.9,0.2301]
[1762128531237,0.55085915,3910.0,3909.9,1.26906239]
[1762128533649,0.55085915,3910.0,3909.9,0.2301]
[1762128533850,0.00242134,3910.2,3910.1,0.2301]
[1762128534154,0.55377046,3910.2,3910.1,0.2301]
[1762128534654,0.68419,3910.1,3910.0,0.1343]
[1762128534947,1.23553912,3910.1,3910.0,0.1343]
[1762128540756,0.77514912,3910.1,3910.0,0.3644]
[1762128541059,0.55134912,3910.1,3910.0,0.3644]
[1762128544763,0.55134912,3910.1,3910.0,1.40336239]
[1762128549059,0.00242134,3910.2,3910.0,0.3644]
[1762128549260,1.37782117,3911.1,3911.0,0.3644]
[1762128549459,3.2078,3912.4,3912.0,0.1343]
[1762128549662,0.68396,3912.1,3912.0,0.1343]
[1762128550164,0.68653419,3912.1,3912.0,0.13717526]
[1762128550363,0.22637419,3912.1,3912.0,0.13717526]
[1762128551157,0.22637419,3912.1,3912.0,0.00287526]
[1762128551358,0.2238,3911.1,3911.0,0.1343]
[1762128552458,0.2238,3911.1,3911.0,0.13619309]
[1762128552663,0.46024,3911.5,3911.0,0.36629309]
[1762128552864,0.46025,3911.4,3911.0,0.36629309]
[1762128553064,0.2238,3911.1,3911.0,0.36629309]
[1762128554969,0.2238,3911.1,3911.0,0.13619309]
[1762128555866,3.4234,3911.6,3911.5,0.1402]
[1762128556068,0.00257419,3912.1,3912.0,0.1402]
[1762128556261,0.21817419,3912.1,3912.0,0.1402]
[1762128556563,0.00257419,3912.1,3912.0,0.3761]
[1762128561174,0.54881686,3912.1,3912.0,0.3761]
[1762128561873,0.54881686,3912.1,3912.0,9.3411]
[1762128562071,0.76441686,3912.1,3912.0,0.1402]
[1762128562270,0.76441686,3912.1,3911.6,0.46021]
[1762128562271,0.2156,3911.9,3911.5,0.1402]
[1762128562475,0.2156,3911.9,3911.6,3.71]
[1762128562776,0.2156,3911.3,3910.8,3.6681]
[1762128563075,3.66801,3911.7,3911.1,8.96]
[1762128563273,0.54624477,3911.6,3911.5,0.1402]
[1762128563578,0.76184477,3911.6,3911.5,0.1402]
[1762128565771,0.2156,3911.2,3911.0,0.13619309]
[1762128565971,0.54624477,3911.1,3911.0,9.32659309]
[1762128566473,0.68892,3911.6,3911.5,0.1369]
[1762128566672,1.23541064,3911.6,3911.5,0.1369]
[1762128568979,0.46025,3911.4,3911.2,1.03896239]
[1762128569176,0.77519064,3911.3,3911.2,1.03896239]
[1762128569876,0.77519064,3911.3,3911.2,1.26536239]
[1762128570480,0.54649064,3911.3,3911.2,1.26536239]
[1762128570870,1.00672064,3911.5,3911.2,1.26536239]
[1762128571075,0.54649064,3911.4,3911.2,1.26536239]
[1762128571272,0.54649064,3911.4,3911.3,0.2264]
[1762128571474,1.37486351,3911.9,3911.8,0.2264]
[1762128571667,3.21037419,3912.1,3912.0,0.3633]
[1762128571877,3.75722713,3912.1,3912.0,0.3633]
[1762128572478,3.75725025,3912.1,3912.0,0.3633]
[1762128573184,0.54945025,3912.1,3912.0,0.3633]
[1762128574483,0.77815025,3912.1,3912.0,0.1369]
[1762128575081,0.54945025,3912.1,3912.0,0.3633]
[1762128577482,0.77815025,3912.1,3912.0,9.3233]
[1762128577777,0.54945025,3912.1,3912.0,9.3233]
[1762128579191,0.77815025,3912.1,3912.0,0.1369]
[1762128579382,0.77815025,3912.1,3912.0,6.8969]
[1762128579583,0.54945025,3912.1,3912.0,7.1233]
[1762128580389,0.54585944,3912.1,3912.0,7.1233]
[1762128582284,3.75365944,3912.1,3911.5,0.1369]
[1762128582490,1.00346525,3912.0,3911.6,5.761]
[1762128582691,1.00347525,3911.9,3911.6,8.958]
[1762128582993,0.54328525,3911.8,3911.6,8.958]
[1762128583194,0.54328525,3911.8,3911.7,0.2264]
[1762128583490,0.00257419,3912.1,3912.0,0.3633]
[1762128583793,0.00257419,3912.1,3912.0,9.3213]
[1762128584285,0.54588278,3912.1,3912.0,9.3213]
[1762128585188,0.54588278,3912.1,3912.0,10.36026239]
[1762128585391,3.2078,3912.9,3912.7,0.2279]
[1762128585584,3.2078,3912.9,3912.6,1.03896239]
[1762128585585,0.2233,3912.7,3912.6,1.03896239]
[1762128586287,0.22611887,3912.7,3912.6,1.26686239]
[1762128587178,0.22611887,3912.7,3912.6,10.22386239]
[1762128587779,0.22611887,3912.7,3912.6,1.26686239]
[1762128587993,0.22611887,3912.7,3912.6,10.22286239]
[1762128588290,0.00281887,3912.7,3912.6,10.22286239]
[1762128589390,0.00281887,3912.7,3912.6,9.1839]
[1762128590094,0.22611887,3912.7,3912.6,9.1839]
[1762128591093,0.00281887,3912.7,3912.6,9.1839]
[1762128592491,0.00281887,3912.7,3912.6,10.22286239]
[1762128593293,0.00281887,3912.7,3912.6,9.1839]
[1762128593597,1.887e-05,3912.7,3912.6,9.1839]
[1762128594284,1.887e-05,3912.7,3912.6,9.2607]
[1762128594598,1.887e-05,3912.7,3912.6,10.53459673]
[1762128595099,3.2078,3914.6,3914.5,0.3562]
[1762128595290,0.025,3914.7,3914.6,0.2279]
[1762128595699,0.025,3914.7,3914.6,9.1809]
[1762128596000,0.02788759,3914.7,3914.6,9.18366805]
[1762128596186,0.71103759,3914.7,3914.6,0.23066805]
[1762128596499,0.25118759,3914.7,3914.6,0.00276805]
[1762128597692,0.25118759,3914.7,3914.6,0.23066805]
[1762128598093,0.02788759,3914.7,3914.6,0.69053805]
[1762128598299,0.02788759,3914.7,3914.6,0.23066805]
[1762128601806,3.2078,3915.5,3914.6,0.23066805]
[1762128601807,3.4311,3915.5,3915.4,0.2279]
[1762128602498,3.5694,3915.5,3915.4,0.2279]
[1762128602697,3.57191682,3915.5,3915.0,0.1311]
[1762128602899,3.57191682,3915.5,3915.0,0.59091]
[1762128603098,4.03168682,3915.5,3915.0,0.1311]
[1762128603896,3.34861682,3915.5,3914.7,1.49881239]
[1762128604093,0.45979,3915.3,3914.7,1.49881239]
[1762128604800,0.45979,3915.3,3914.8,0.45984]
[1762128604992,3.34861682,3915.5,3914.9,0.45983]
[1762128604993,3.80838682,3915.5,3914.9,0.45983]
[1762128605192,0.45978,3915.4,3915.0,0.1311]
[1762128605998,0.45979,3915.3,3915.0,0.1311]
[1762128606197,3.80838682,3915.5,3915.0,0.1311]
[1762128606403,3.34861682,3915.5,3914.7,1.49881239]
[1762128606791,0.2233,3914.8,3914.7,1.03896239]
[1762128607192,0.2233,3914.8,3914.7,1.26686239]
[1762128607993,0.2233,3914.8,3914.7,1.03896239]
[1762128607994,0.68314,3914.8,3914.7,1.03896239]
[1762128609396,0.2233,3914.7,3914.6,0.00276805]
[1762128609591,0.2233,3914.0,3913.4,3.2078]
[1762128609797,0.3616,3914.0,3913.4,3.6678]
[1762128609997,0.3616,3914.0,3913.5,0.52849]
[1762128610199,3.2078,3914.8,3914.7,0.2279]
[1762128610403,3.2078,3915.3,3914.8,0.45984]
[1762128610597,0.14081682,3915.5,3914.9,0.45983]
[1762128610798,0.14081682,3915.5,3915.0,0.59091]
[1762128611115,0.14081682,3915.5,3915.1,0.4598]
[1762128611301,0.14081682,3915.5,3915.4,0.2279]
[1762128611698,0.00251682,3915.5,3915.4,0.2279]
[1762128612202,0.36411682,3915.5,3915.4,0.2279]
[1762128612401,0.36411682,3915.5,3915.1,0.4598]
[1762128612698,0.36411682,3915.5,3915.2,0.4598]
[1762128613206,0.36411682,3915.5,3915.0,0.1311]
[1762128613409,0.36411682,3915.5,3915.2,0.45979]
[1762128613613,0.36411682,3915.5,3915.1,0.4598]
[1762128613912,0.00251682,3915.5,3915.4,0.2279]
[1762128614111,0.36411682,3915.5,3915.0,0.1311]
[1762128614613,0.36411682,3915.5,3915.0,0.59091]
[1762128615614,0.36411682,3915.5,3914.8,3.21060942]
[1762128615906,0.34591682,3915.5,3915.4,0.2153]
[1762128616110,0.34591682,3915.5,3914.8,0.00280942]
[1762128616508,0.34591682,3915.5,3915.0,0.45981]
[1762128616707,0.34591682,3915.5,3915.0,0.59061]
[1762128617309,0.34591682,3915.5,3914.8,0.46264942]
[1762128617611,0.34591682,3915.5,3914.9,0.45983]
[1762128618001,0.34591682,3915.5,3915.0,0.45981]
[1762128618603,0.34591682,3915.5,3914.8,0.00280942]
[1762128619609,0.34591682,3915.5,3914.8,0.46264942]
[1762128619809,0.34591682,3915.5,3914.8,0.00280942]
[1762128619810,0.2139,3914.9,3914.8,0.00280942]
[1762128621606,8.2139,3914.9,3914.8,0.00280942]
[1762128621917,0.2139,3913.2,3912.5,3.2078]
[1762128622116,0.1295,3913.5,3913.1,0.68653068]
[1762128622413,3.3373,3914.0,3913.5,0.1352]
[1762128622608,3.3373,3914.0,3913.1,0.47123068]
[1762128622811,3.2078,3913.6,3913.4,0.2153]
[1762128623005,0.1295,3914.0,3913.2,0.46003]
[1762128623006,0.1295,3914.0,3913.9,0.2153]
[1762128623205,0.1295,3914.0,3913.5,0.59519]
[1762128623206,0.3434,3914.0,3913.5,0.1352]
[1762128623402,0.3434,3914.0,3913.3,0.46002]
[1762128623711,0.3434,3914.0,3913.2,3.66783]
[1762128624012,3.2078,3913.7,3913.1,0.47326436]
[1762128626416,3.2078,3913.7,3913.6,0.2153]
[1762128626417,3.4345,3913.7,3913.6,0.2153]
[1762128626616,3.4345,3913.7,3913.1,0.47326436]
[1762128626818,3.4345,3913.7,3913.2,0.46003]
[1762128627013,0.2267,3913.7,3913.2,0.46003]
[1762128627917,0.2267,3913.7,3913.3,0.46001]
[1762128629214,0.2267,3913.7,3913.2,0.46003]
[1762128629515,0.68668,3913.7,3913.1,0.93330436]
[1762128629717,0.45996,3913.8,3913.2,0.46002]
[1762128630019,0.45998,3913.7,3913.2,0.46002]
[1762128631122,0.45999,3913.6,3913.1,0.47326436]
[1762128631422,0.45999,3913.6,3913.1,0.93330436]
[1762128631920,0.45997,3913.8,3913.3,0.46001]
[1762128633219,0.45995,3913.9,3913.1,0.47326436]
[1762128633421,0.1295,3914.0,3913.2,1.03896239]
[1762128633624,0.45998,3913.7,3913.2,1.49899239]
[1762128633826,0.45999,3913.6,3913.2,1.03896239]
[1762128634224,0.2267,3913.2,3913.1,0.47326436]
[1762128634414,0.4601,3912.6,3912.4,3.2078]
[1762128634614,0.3613,3912.5,3912.1,0.46015]
[1762128634819,0.1346,3913.0,3912.4,0.68302]
[1762128635120,0.59466,3913.0,3912.5,0.0643]
[1762128635525,0.46007,3912.9,3912.5,0.06686641]
[1762128635719,0.13726583,3913.0,3912.5,0.00256641]
[1762128636026,0.46007,3912.9,3912.5,0.00256641]
[1762128636325,0.59732583,3913.0,3912.5,0.00256641]
[1762128636517,0.46007,3912.9,3912.5,0.00256641]
[1762128636926,0.46009,3912.8,3912.5,0.00256641]
[1762128637118,0.2267,3912.6,3912.5,0.00256641]
[1762128637520,0.2267,3912.6,3912.5,0.22546641]
[1762128637919,0.2267,3912.6,3912.5,0.00256641]
[1762128640526,0.46007,3912.9,3912.5,0.74987641]
[1762128640728,0.46008,3912.8,3912.7,0.2229]
[1762128641135,0.68678,3912.8,3912.7,0.2229]
[1762128641726,0.00266583,3913.0,3912.9,0.2229]
[1762128642924,0.00266583,3913.0,3912.5,0.06686641]
[1762128643129,0.13726583,3913.0,3912.6,0.46009]
[1762128643432,0.13726583,3913.0,3912.8,0.46007]
[1762128643624,0.36396583,3913.0,3912.9,1.03896239]
[1762128645630,0.90517051,3913.0,3912.9,1.03896239]
[1762128647522,8.90517051,3913.0,3912.1,6.333]
[1762128647726,0.69085,3912.2,3911.5,3.343]
[1762128647922,0.2307,3912.2,3911.7,0.4602]
[1762128648127,0.2307,3912.2,3911.6,3.842]
[1762128648327,0.2307,3912.2,3911.6,4.30221]
[1762128648731,0.2307,3912.2,3911.6,4.30540751]
[1762128648936,0.2307,3912.2,3911.7,0.4602]
[1762128649631,0.69085,3912.2,3911.7,0.4602]
[1762128649830,0.69085,3912.2,3911.6,4.30540751]
[1762128650238,0.46017,3912.1,3911.6,4.30540751]
[1762128651034,3.2078,3912.4,3912.3,0.2263]
[1762128651237,3.75034179,3912.4,3912.3,4.0683]
[1762128653034,3.98104179,3912.4,3912.3,4.0683]
[1762128653238,3.98104179,3912.4,3912.3,3.842]
[1762128654341,0.2307,3911.9,3911.8,4.0683]
[1762128654632,0.1411,3912.0,3911.9,0.2263]
[1762128655334,0.60127,3912.0,3911.9,0.2263]
[1762128655741,0.60127,3912.0,3911.9,4.0683]
[1762128655940,0.83197,3912.0,3911.9,4.0683]
[1762128656639,0.83197,3912.0,3911.9,3.842]
[1762128656836,4.58226345,3912.0,3911.9,3.842]
[1762128660531,0.69091,3911.7,3911.6,0.00319751]
[1762128660736,0.4603,3910.9,3910.7,3.3053465]
[1762128660941,0.1411,3911.5,3910.5,3.3386]
[1762128660942,0.1411,3911.0,3910.9,0.2263]
[1762128661137,0.46025,3911.4,3911.0,0.2263]
[1762128661332,0.46025,3911.4,3911.3,0.2263]
[1762128661536,0.54245249,3911.4,3911.3,0.2263]
[1762128661740,0.54245249,3911.4,3911.3,0.22853338]
[1762128662045,0.77315249,3911.4,3911.3,0.00223338]
[1762128666248,0.83209,3911.0,3910.9,3.3053465]
[1762128666539,4.58234249,3911.0,3910.9,3.3053465]
[1762128666742,4.58234249,3911.0,3910.9,3.16645341]
[1762128666943,0.3718,3910.0,3909.9,3.16645341]
[1762128667145,0.37443941,3910.0,3909.9,3.16825231]
[1762128667838,0.23333941,3910.0,3909.9,3.39455231]
[1762128668541,0.00263941,3910.0,3909.9,3.39455231]
[1762128668940,0.37443941,3910.0,3909.9,3.39455231]
[1762128669546,0.37443941,3910.0,3909.9,3.16825231]
[1762128670844,0.00263941,3910.0,3909.9,3.39455231]
[1762128672446,0.37443941,3910.0,3909.9,3.39455231]
[1762128672944,0.37443941,3910.0,3909.9,3.16825231]
[1762128673144,0.37443941,3910.0,3909.9,0.0017989]
[1762128674852,0.37443941,3910.0,3909.9,0.2280989]
[1762128675250,0.37443941,3910.0,3909.9,0.0017989]
[1762128675443,0.37443941,3910.0,3909.9,3.16825231]
[1762128678554,4.12245526,3910.0,3909.9,3.16825231]
[1762128678851,4.12245526,3910.0,3909.9,0.0017989]
[1762128679047,12.12245526,3910.0,3909.9,0.0017989]
[1762128679750,0.2321,3909.8,3909.7,0.02557774]
[1762128680053,0.77231585,3909.8,3909.7,0.02557774]
[1762128680754,0.77231585,3909.8,3909.7,0.02831271]
[1762128683847,0.54021585,3909.8,3909.7,0.24611271]
[1762128684149,0.46042,3909.9,3909.7,0.24611271]
[1762128684540,0.54033356,3909.8,3909.7,0.24611271]
[1762128686247,0.77243356,3909.8,3909.7,0.24611271]
[1762128688859,0.54033356,3909.8,3909.7,0.24611271]
[1762128689161,3.21043941,3910.0,3909.9,0.217]
[1762128689455,3.75183038,3910.0,3909.9,0.217]
[1762128690849,0.2328,3909.8,3909.7,3.19476612]
[1762128691048,0.77419097,3909.8,3909.7,3.19476612]
[1762128692354,0.77446555,3909.8,3909.7,3.19476612]
[1762128693863,0.77446555,3909.8,3909.7,3.41176612]
[1762128695258,3.33993941,3910.0,3909.9,0.217]
[1762128695259,0.00263941,3910.0,3909.9,0.217]
[1762128695463,3.2078,3911.0,3910.9,0.217]
[1762128696465,3.21019679,3911.0,3910.9,0.217]
[1762128701064,3.57249679,3911.0,3910.9,0.217]
[1762128702472,0.36469679,3911.0,3910.9,0.217]
[1762128703170,0.36469679,3911.0,3910.1,3.2078]
[1762128703171,0.4603,3910.9,3910.3,0.46036]
[1762128703478,0.1295,3910.5,3910.1,3.66819]
[1762128703770,0.1295,3910.5,3910.1,3.4248]
[1762128704178,9.40632,3910.8,3910.4,0.217]
[1762128704871,3.21019679,3911.0,3910.9,0.2124]
[1762128705069,0.2186,3910.9,3910.5,0.1401]
[1762128705671,0.2186,3910.9,3910.8,0.2124]
[1762128706573,0.2186,3910.8,3910.7,0.46032]
[1762128706772,0.2186,3910.8,3910.5,3.80824]
[1762128706974,0.2186,3910.7,3910.6,0.46033]
[1762128707671,0.2186,3910.7,3910.5,3.3479]
[1762128707873,0.2186,3910.7,3910.5,3.2078]
[1762128708474,0.2186,3910.7,3910.5,0.46034]
[1762128708867,0.2186,3910.4,3910.3,0.46036]
[1762128709372,0.2186,3910.4,3910.3,0.67276]
[1762128709673,0.2186,3910.4,3910.0,3.3307]
[1762128709674,0.2186,3910.4,3910.1,0.46039]
[1762128710668,0.1357,3910.5,3910.4,0.46036]
[1762128710867,0.1357,3910.5,3910.2,0.46037]
[1762128711171,0.46033,3910.7,3910.4,0.2124]
[1762128714876,0.4603,3910.9,3910.6,0.2124]
[1762128715579,0.4603,3910.9,3910.7,3.16645341]
[1762128715771,3.34589679,3911.0,3910.9,0.2124]
[1762128716075,3.21019679,3911.0,3910.9,0.2124]
[1762128717177,0.00239679,3911.0,3910.9,0.2124]
[1762128718673,0.2186,3910.9,3910.8,3.16645341]
[1762128720777,0.2186,3910.9,3910.8,3.37885341]
[1762128720978,3.21019679,3911.0,3910.9,0.2124]
[1762128721281,0.00239679,3911.0,3910.9,0.6727]
[1762128721483,0.00239679,3911.0,3910.9,3.83915341]
[1762128721681,3.2078,3911.9,3911.8,0.2124]
[1762128721986,3.2078,3912.3,3912.2,0.2124]
[1762128722176,0.1357,3912.0,3911.2,3.2078]
[1762128722484,0.46021,3911.7,3911.2,3.2078]
[1762128722785,0.46281474,3911.7,3911.2,3.2078]
[1762128723685,0.46281474,3911.7,3910.1,1.34344693]
[1762128723686,0.46025,3911.3,3910.8,3.2078]
[1762128725181,0.59593,3911.5,3910.8,3.6681]
[1762128726481,0.46025,3911.4,3910.8,3.6681]
[1762128726887,0.46025,3911.4,3910.8,0.4603]
[1762128727180,3.66807,3911.2,3910.5,0.1396]